[Event "MCCT Oslo Esports Cup 2022"]
[Site "Oslo"]
[Date "2022.04.20"]
[Round "6.1"]
[White "Carlsen, Magnus"]
[Black "Hansen, Eric"]
[Result "1-0"]
[ECO "D85"]
[WhiteElo "2864"]
[BlackElo "2606"]
[Annotator "TA"]
[PlyCount "63"]
[EventDate "2022.04.14"]
[EventType "tourn"]
[EventCountry "NOR"]
[SourceTitle "playchess.com"]
[Source "ChessBase"]
[SourceQuality "1"]
[TimeControl "900+10"]

{[%evp 17,63,40,34,27,24,24,34,16,21,0,0,0,0,0,4,3,20,13,30,8,38,27,19,10,31,-17,-6,-51,-19,-32,-11,-27,-6,-31,400,408,522,509,1435,1422,1370,1331,2059,1658,2066,2054,1606,1120]} 1. d4 {[%emt 0:00:00]} Nf6 {[%emt 0:00:00]} 2. c4 {[%emt 0:00:03]} g6 {[%emt 0:00:27]} 3. Nc3 {[%emt 0:00:08]} d5 {[%emt 0:00:01]} 4. cxd5 {[%emt 0:00:01]} Nxd5 {[%emt 0:00:00]} 5. e4 {[%emt 0:00:02]} Nxc3 {[%emt 0:00:01]} 6. bxc3 {[%emt 0:00:01]} Bg7 {[%emt 0:00:00]} 7. Qa4+ {[%emt 0:00:01]} c6 {[%emt 0:00:22]} 8. Nf3 {[%emt 0:00:06]} Nd7 {[%emt 0:00:07][%cal Bb8d7,Bd7b6,Bb6c4][%mdl 32]} 9. Be2 {[%emt 0:00:30]} O-O {[%emt 0:00:11]} 10. O-O {[%emt 0:01:42] D85: Exchange Grünfeld: Unusual White 7th moves and lines with 7 Nf3.} b5 {[%emt 0:04:06]} 11. Qc2 {[%emt 0:00:31]} Nb6 {[%emt 0:00:01] Inhibits a4.} 12. Bf4 {[%emt 0:00:57] [#] White is slightly better.} Bg4 $146 {[%emt 0:00:11]} ({Predecessor:} 12... a6 13. Rad1 Be6 14. Ne5 Qc8 15. Nd3 Na4 16. Bg5 Qc7 17. Rc1 Rad8 18. Qd2 Bc4 {½-½ (39) Remlinger,L (2402)-Troff,K (2257) Los Angeles 2012}) 13. Ne5 {[%emt 0:02:04]} Bxe2 {[%emt 0:00:05]} 14. Qxe2 {[%emt 0:00:00]} Bxe5 {[%emt 0:01:50]} 15. Bxe5 {[%emt 0:00:02]} Nc4 {[%emt 0:00:01]} 16. Bf4 {[%emt 0:00:01]} Qa5 {[%emt 0:00:06]} 17. Rac1 {[%emt 0:00:31]} f6 {[%emt 0:01:12]} 18. h4 {[%emt 0:00:05]} Rad8 {[%emt 0:00:25]} 19. Rfd1 {[%emt 0:00:22]} e5 {[%emt 0:00:17]} 20. Bh6 {[%emt 0:00:11]} Rfe8 {[%emt 0:00:05]} 21. Qg4 {[%emt 0:00:16]} (21. a4 $14 {feels stronger.}) 21... Qc7 {[%emt 0:00:08]} (21... Qxa2 $2 22. h5 (22. Ra1 f5 $16) 22... Qa3 23. hxg6 $18) 22. Rd3 {[%emt 0:00:53]} Qd7 {[%emt 0:00:41]} 23. Qg3 {[%emt 0:00:04]} Qe6 {[%emt 0:01:14]} 24. Re1 {[%emt 0:01:08]} Rd7 {[%emt 0:00:26]} 25. f4 {[%emt 0:00:13]} Kh8 $2 {[%emt 0:00:29][%mdl 8192] Black cannot hold the game after this.} (25... exf4 $15 {stays ahead.} 26. Bxf4 f5) 26. fxe5 $18 {[%emt 0:00:11]} fxe5 {[%emt 0:00:23]} 27. Rf1 {[%emt 0:01:38] [#] Strongly threatening Rdf3. White is clearly winning.} Rf7 {[%emt 0:00:03]} (27... Rdd8 $142 28. Bg5 Rc8 29. Bf6+ Kg8) 28. Rxf7 {[%emt 0:00:41]} Qxf7 {[%emt 0:00:01]} 29. Rf3 {[%emt 0:00:02]} Qe7 {[%emt 0:01:05]} 30. h5 {[%emt 0:00:03]} Qd6 {[%emt 0:00:37]} 31. Qf2 {[%emt 0:02:25] [#] Intending Rf6 and mate.} gxh5 {[%emt 0:04:08]} 32. Bg5 {[%emt 0:00:29] Weighted Error Value: White=0.12 (very precise) /Black=0.59} 1-0

[Event "MCCT Oslo Esports Cup 2022"]
[Site "Oslo"]
[Date "2022.04.20"]
[Round "6.1"]
[White "Giri, Anish"]
[Black "Le, Quang Liem"]
[Result "0-1"]
[ECO "E52"]
[WhiteElo "2773"]
[BlackElo "2709"]
[Annotator "TA"]
[PlyCount "114"]
[EventDate "2022.04.14"]
[EventType "tourn"]
[EventCountry "NOR"]
[SourceTitle "playchess.com"]
[Source "ChessBase"]
[SourceQuality "1"]
[TimeControl "900+10"]

{[%evp 15,114,-9,10,-9,1,0,10,9,14,12,12,18,24,8,35,23,20,13,29,0,27,23,31,23,22,27,20,26,26,6,32,0,0,0,0,0,0,0,6,0,0,0,0,0,0,0,0,0,0,0,93,93,93,98,92,92,92,92,93,92,112,84,89,89,93,56,56,8,14,8,8,8,8,8,8,8,8,-8,-8,-8,-8,-8,-8,-29971,-29971,-29973,-29974,-29974,-29975,-29983,-29976,-29976,-29977,-29977,-29978,-29981,-29982,-29983,-29984,-29984,-29984]} 1. d4 {[%emt 0:00:00]} Nf6 {[%emt 0:00:00]} 2. c4 {[%emt 0:00:02]} e6 {[%emt 0:00:02]} 3. Nc3 {[%emt 0:00:01]} Bb4 {[%emt 0:00:03]} 4. Nf3 {[%emt 0:00:01]} O-O {[%emt 0:00:04]} 5. e3 {[%emt 0:00:03]} d5 {[%emt 0:00:30]} 6. Bd2 {[%emt 0:00:01]} b6 {[%emt 0:00:03]} 7. cxd5 {[%emt 0:00:02]} exd5 {[%emt 0:00:01]} 8. Bd3 {[%emt 0:00:01]} Bb7 {[%emt 0:00:09]} 9. Qc2 {[%emt 0:00:04] E52: Nimzo-Indian: Rubinstein: 4...0-0 5 Nf3 d5 6 Bd3 b6.} c5 {[%emt 0:00:06]} 10. O-O {[%emt 0:01:21]} c4 {[%emt 0:00:29]} 11. Be2 {[%emt 0:00:02] The position is equal.} Nc6 {[%emt 0:00:25]} 12. b3 {[%emt 0:00:16]} cxb3 {[%emt 0:03:02] [#]} 13. Qxb3 $146 {[%emt 0:00:17]} ({Predecessor:} 13. axb3 Bd6 14. Rfc1 Rc8 15. Qf5 Re8 16. g3 g6 17. Qg5 Na5 18. Bd1 Be7 19. Qf4 {0-1 (49) Knoeppel,P (1873)-Warzecha,H (2221) ICCF email 2016}) 13... Rc8 {[%emt 0:00:14]} 14. Ne5 {[%emt 0:00:36] Black must now prevent Nxc6.} Ba5 {[%emt 0:01:28]} 15. Nxc6 {[%emt 0:00:32]} Rxc6 {[%emt 0:00:00]} 16. Rac1 {[%emt 0:01:05]} Qc8 {[%emt 0:00:07]} 17. Qb2 {[%emt 0:01:51]} Qf5 {[%emt 0:01:12]} (17... Bxc3 $5 18. Rxc3 Rxc3 19. Bxc3 Ba6 $11) 18. Bb5 {[%emt 0:03:17]} Rcc8 {[%emt 0:01:44]} 19. Nb1 {[%emt 0:00:17]} Bxd2 {[%emt 0:00:11]} 20. Nxd2 {[%emt 0:00:01]} Rxc1 {[%emt 0:01:27]} 21. Rxc1 {[%emt 0:00:04] And now Rc7 would win.} Rc8 {[%emt 0:00:00] Prevents Rc7.} 22. f3 {[%emt 0:01:05]} h6 {[%emt 0:00:53]} 23. a4 {[%emt 0:03:15]} Qe6 {[%emt 0:00:29]} 24. Kf2 {[%emt 0:00:11]} Bc6 {[%emt 0:00:10]} 25. Bxc6 {[%emt 0:02:16]} Rxc6 {[%emt 0:00:00]} 26. Nb1 {[%emt 0:00:01]} a6 {[%emt 0:01:11]} 27. Rc3 {[%emt 0:00:17]} Ne8 {[%emt 0:00:39]} 28. Qb3 {[%emt 0:00:12]} Nc7 {[%emt 0:01:12]} 29. Rxc6 {[%emt 0:01:01]} Qxc6 {[%emt 0:00:00]} 30. Nc3 {[%emt 0:00:04]} b5 {[%emt 0:00:07]} 31. axb5 {[%emt 0:00:03]} axb5 {[%emt 0:00:00]} 32. Ke2 {[%emt 0:00:53]} Qc4+ {[%emt 0:00:28]} (32... Qg6 $11 {remains equal.} 33. g3 Qh5) 33. Qxc4 $16 {[%emt 0:00:01]} dxc4 {[%emt 0:00:00][%mdl 4096] Endgame KN-KN} 34. d5 {[%emt 0:00:01][%cal Bd4d5,Bd5d6][%mdl 32]} b4 {[%emt 0:00:18] [#]} 35. d6 $1 {[%emt 0:00:01]} Ne6 {[%emt 0:00:04]} 36. Nd5 {[%emt 0:00:02]} b3 {[%emt 0:00:03]} 37. Kd2 {[%emt 0:00:01]} Kf8 {[%emt 0:00:56]} 38. d7 {[%emt 0:00:44]} f5 {[%emt 0:00:21]} 39. Kc3 {[%emt 0:00:18]} Kf7 {[%emt 0:00:20]} 40. h4 {[%emt 0:00:43]} g5 {[%emt 0:00:39]} 41. h5 {[%emt 0:00:12]} (41. Nb6 $14 {deserves consideration.}) 41... Kf8 $1 $11 {[%emt 0:01:21]} 42. f4 {[%emt 0:00:22]} gxf4 {[%emt 0:00:08]} 43. exf4 {[%emt 0:00:09]} Kf7 {[%emt 0:00:31]} 44. Ne3 {[%emt 0:00:21]} ({Don't play} 44. Kxc4 b2 45. Nc3 Ke7 $17) 44... Ke7 {[%emt 0:00:05]} 45. Nxf5+ {[%emt 0:00:07]} Kxd7 {[%emt 0:00:01]} 46. g3 {[%emt 0:00:07]} Nc5 {[%emt 0:00:03] Hoping for ...Na4+.} 47. Ne3 $1 {[%emt 0:00:18]} (47. Kxc4 $2 {[#]} b2 $1 48. Kxc5 b1=Q $19) ({Avoid the trap} 47. Nxh6 $2 Na4+ 48. Kd2 c3+ 49. Kd3 c2 $19) 47... Na4+ {[%emt 0:00:23]} 48. Kd2 $1 {[%emt 0:00:01]} ({Not} 48. Kxc4 $2 b2 49. Ng4 b1=Q $19) 48... c3+ {[%emt 0:00:00]} 49. Kc1 $2 {[%emt 0:00:21][%mdl 8192] White does not recover from this.} (49. Kd3 $11) 49... Nc5 {[%emt 0:00:07] Black mates.} 50. f5 {[%emt 0:00:08]} Nd3+ {[%emt 0:00:10]} 51. Kb1 {[%emt 0:00:05]} Kd6 {[%emt 0:00:08]} 52. g4 {[%emt 0:00:07]} c2+ {[%emt 0:00:20]} 53. Nxc2 {[%emt 0:00:01]} bxc2+ {[%emt 0:00:00]} 54. Kxc2 {[%emt 0:00:01]} Ne5 {[%emt 0:00:00]} 55. g5 {[%emt 0:00:05]} hxg5 {[%emt 0:00:00]} 56. h6 {[%emt 0:00:01]} Nf7 {[%emt 0:00:01]} 57. h7 {[%emt 0:00:07]} Ke5 {[%emt 0:00:01] Weighted Error Value: White=0.16 (very precise) /Black=0.09 (flawless)} 0-1

[Event "MCCT Oslo Esports Cup 2022"]
[Site "Oslo"]
[Date "2022.04.20"]
[Round "6.1"]
[White "Duda, Jan-Krzysztof"]
[Black "Praggnanandhaa R"]
[Result "1-0"]
[ECO "A20"]
[WhiteElo "2750"]
[BlackElo "2624"]
[Annotator "TA"]
[PlyCount "129"]
[EventDate "2022.04.14"]
[EventType "tourn"]
[EventCountry "NOR"]
[SourceTitle "playchess.com"]
[Source "ChessBase"]
[SourceQuality "1"]
[TimeControl "900+10"]

{[%evp 9,129,-5,-15,-25,-35,-29,-29,-33,-27,-36,-24,-27,-24,-47,-23,-20,-20,-25,-29,-26,-30,-28,-31,-33,0,0,0,0,0,0,0,0,0,0,0,0,0,-10,-10,-14,0,-57,-33,-43,-18,-41,0,-14,-22,-20,-13,-37,-16,-17,0,0,0,0,0,0,0,0,0,0,0,0,0,0,2,0,0,0,0,0,0,0,106,112,250,164,735,724,713,700,672,687,697,408,651,644,525,327,320,273,359,302,12831,12831,12830,12831,12834,12832,12838,12839,12839,12839,12840,12840,12841,12841,12841,12839,12842,12843,12844,12844,29982,29983,29983,29984,12845,12845]} 1. c4 {[%emt 0:00:00]} e5 {[%emt 0:00:00][%cal Be7e5,Be5e4][%mdl 32]} 2. Nf3 {[%emt 0:00:03]} e4 {[%emt 0:00:15]} 3. Nd4 {[%emt 0:00:01]} Nc6 {[%emt 0:00:01]} 4. Nxc6 {[%emt 0:00:01]} dxc6 {[%emt 0:00:04]} 5. Nc3 {[%emt 0:00:03]} Nf6 {[%emt 0:00:14]} 6. e3 {[%emt 0:00:03] A20: English Opening: 1...e5.} Bf5 {[%emt 0:00:23]} 7. Qb3 {[%emt 0:00:42]} b6 {[%emt 0:00:15]} 8. Qc2 {[%emt 0:00:08] Black has an edge.} Qd7 {[%emt 0:00:08]} 9. b3 {[%emt 0:00:05]} h5 {[%emt 0:02:42][%cal Bh7h5,Bh5h4][%mdl 32]} 10. Bb2 {[%emt 0:00:07]} Be7 {[%emt 0:00:49]} 11. h3 {[%emt 0:00:12]} h4 {[%emt 0:00:16]} 12. O-O-O {[%emt 0:00:46]} O-O-O {[%emt 0:00:09] [#]} 13. Kb1 $146 {[%emt 0:00:02]} ({Predecessor:} 13. Rg1 Rhg8 14. g4 hxg3 15. fxg3 Qe6 16. Ne2 c5 17. g4 Bh7 18. Nf4 Qd6 19. g5 {1-0 (32) Strunski,A (2306)-Kobo,O (2505) Douglas 2018}) 13... Kb8 {[%emt 0:00:25]} 14. Ne2 {[%emt 0:00:02]} c5 {[%emt 0:02:32]} 15. g4 $1 {[%emt 0:02:33]} hxg3 {[%emt 0:00:05]} 16. Nxg3 {[%emt 0:00:01]} Bxh3 {[%emt 0:01:51]} 17. Bxh3 {[%emt 0:00:49]} Rxh3 {[%emt 0:00:00]} 18. Rxh3 {[%emt 0:00:10]} Qxh3 {[%emt 0:00:00]} 19. Bxf6 {[%emt 0:00:02]} Bxf6 {[%emt 0:00:08]} 20. Qxe4 {[%emt 0:00:04]} g6 {[%emt 0:01:23]} 21. Kc2 {[%emt 0:00:58]} Qd7 {[%emt 0:00:09]} 22. Ne2 {[%emt 0:00:22]} Bg7 {[%emt 0:00:48]} 23. d3 {[%emt 0:03:51]} Qd6 {[%emt 0:02:00] White should prevent ...Qf6.} 24. Qf4 {[%emt 0:01:50]} Qe6 {[%emt 0:00:28]} 25. Rg1 {[%emt 0:01:01]} (25. d4 $11) 25... Rd6 {[%emt 0:00:32]} 26. Qg5 {[%emt 0:01:04]} Bf6 {[%emt 0:00:40]} 27. Qf4 {[%emt 0:00:35]} Bg7 {[%emt 0:01:21]} 28. Rd1 {[%emt 0:00:41]} f5 {[%emt 0:00:23]} 29. d4 {[%emt 0:01:19]} Qf6 {[%emt 0:00:04]} 30. Rd3 {[%emt 0:00:32]} g5 {[%emt 0:00:47]} 31. Qf3 {[%emt 0:00:02]} f4 {[%emt 0:00:22]} 32. exf4 {[%emt 0:00:23]} cxd4 {[%emt 0:00:10]} 33. Ng3 {[%emt 0:00:46]} Rd8 {[%emt 0:00:44]} (33... gxf4 34. Ne4 Qh6 35. Nxd6 Qxd6 36. Qe4 $16) (33... Qxf4 34. Qxf4 gxf4 35. Nf5 $14) 34. Nh5 {[%emt 0:00:44]} Qe7 {[%emt 0:00:03]} 35. Nxg7 {[%emt 0:00:12]} Qxg7 $11 {[%emt 0:00:01][%mdl 4096] Endgame KQR-KQR} 36. Qg4 {[%emt 0:00:00]} Rf8 {[%emt 0:00:36]} 37. Qxg5 {[%emt 0:00:05]} Qh7 {[%emt 0:00:13]} 38. Qe5 {[%emt 0:00:16]} Rd8 {[%emt 0:00:13]} 39. f5 {[%emt 0:00:14][%cal Bf4f5,Bf5f6,Bf6f7][%mdl 32]} Qh4 {[%emt 0:00:06]} 40. Rg3 {[%emt 0:00:31]} Qh2 {[%emt 0:00:12]} 41. Qf4 {[%emt 0:00:03]} d3+ {[%emt 0:00:16]} 42. Kd2 {[%emt 0:00:03]} Qh8 {[%emt 0:00:08]} (42... Qh1 $11 {keeps the balance.} 43. Rxd3 (43. Rg7 Rc8 $11) 43... Re8) 43. f6 $16 {[%emt 0:00:07] [#] Black must now prevent Rg7.} ({Don't go for} 43. Rxd3 $2 Qb2+ 44. Ke3 Qc1+ 45. Ke2 Qxf4 $19) 43... Qh5 {[%emt 0:00:12] ( -> ...Qe2+). Loses the game.} 44. Rxd3 {[%emt 0:00:07]} Rf8 {[%emt 0:00:01]} (44... Qa5+ 45. Ke2 Qxa2+ 46. Qd2 Re8+ 47. Kf3 Qxd2 48. Rxd2 Rf8) 45. Rd7 $18 {[%emt 0:00:10]} Qc5 {[%emt 0:00:02]} 46. f7 {[%emt 0:00:37]} Kc8 {[%emt 0:00:05]} 47. Rd5 {[%emt 0:00:06]} Qa3 {[%emt 0:00:17]} 48. Qf3 {[%emt 0:00:23]} Qxa2+ {[%emt 0:00:02]} (48... Qb2+ $142 49. Kd3 Qxa2) 49. Ke1 {[%emt 0:00:07] Threatens to win with Qe4.} (49. Ke3 Qa1 50. Qf5+ Kb8 $18) 49... Kb8 {[%emt 0:00:29]} 50. Qe4 {[%emt 0:00:05] Strongly threatening Qe8+.} Qa1+ {[%emt 0:00:10]} 51. Ke2 {[%emt 0:00:05] aiming for Re5.} Qg7 {[%emt 0:00:13]} 52. Rd7 {[%emt 0:00:04]} ({Less strong is} 52. Qe8+ Kb7 $18) 52... Rc8 $2 {[%emt 0:00:07]} (52... Qb2+ 53. Kf3 Qf6+ 54. Ke3 Rh8) 53. Re7 {[%emt 0:00:19]} Qb2+ {[%emt 0:00:04]} 54. Kf1 {[%emt 0:00:04]} Qa1+ {[%emt 0:00:15]} 55. Qe1 {[%emt 0:00:02]} Qf6 {[%emt 0:00:01]} 56. Qe6 {[%emt 0:00:05]} Qa1+ {[%emt 0:00:08]} 57. Kg2 {[%emt 0:00:03][%cal Oe6c8] Qxc8+! would kill now. Active counter play!} Qg7+ {[%emt 0:00:01]} 58. Kf3 {[%emt 0:00:06]} Qc3+ {[%emt 0:00:02]} 59. Kg4 {[%emt 0:00:05]} Qg7+ {[%emt 0:00:09]} 60. Kf4 {[%emt 0:00:16] Intending Re8 and mate.} Qd4+ {[%emt 0:00:29]} 61. Kg3 {[%emt 0:00:01] White wants to mate with Re8.} Qg7+ {[%emt 0:00:03] [#]} 62. Qg4 $1 {[%emt 0:00:05]} Qc3+ {[%emt 0:00:08]} 63. Kg2 {[%emt 0:00:04]} Qf6 {[%emt 0:00:29]} 64. Re8 {[%emt 0:00:03][%csl Ge8][%cal Rg4c8]} Qc6+ {[%emt 0:00:27]} 65. Qe4 {[%emt 0:00:01] Weighted Error Value: White=0.13 (very precise) /Black=0.35} 1-0

[Event "MCCT Oslo Esports Cup 2022"]
[Site "Oslo"]
[Date "2022.04.20"]
[Round "6.1"]
[White "Van Foreest, Jorden"]
[Black "Mamedyarov, Shakhriyar"]
[Result "1/2-1/2"]
[ECO "A21"]
[WhiteElo "2714"]
[BlackElo "2771"]
[Annotator "TA"]
[PlyCount "91"]
[EventDate "2022.04.14"]
[EventType "tourn"]
[EventCountry "NOR"]
[SourceTitle "playchess.com"]
[Source "ChessBase"]
[SourceQuality "1"]
[TimeControl "900+10"]

{[%evp 9,91,8,5,2,2,0,10,12,10,0,0,0,0,-11,29,17,14,30,45,43,46,0,78,77,75,75,82,71,75,69,126,126,126,123,200,189,263,249,275,275,275,249,286,286,310,311,313,290,292,256,259,253,283,275,283,283,283,249,283,283,283,283,283,249,249,249,283,249,283,283,283,283,283,283,283,283,283,283,283,0,283,0,283,0]} 1. c4 {[%emt 0:00:00]} e5 {[%emt 0:00:00]} 2. Nc3 {[%emt 0:00:06]} Bb4 {[%emt 0:00:04]} 3. Nd5 {[%emt 0:00:38]} Be7 {[%emt 0:00:02]} 4. Nf3 {[%emt 0:00:23]} d6 {[%emt 0:00:22]} 5. e3 {[%emt 0:00:28]} Nf6 {[%emt 0:00:08]} 6. Nxe7 {[%emt 0:00:09] A21: English Opening: 1...e5 2 Nc3.} Qxe7 {[%emt 0:00:00]} 7. d4 {[%emt 0:00:25]} e4 {[%emt 0:01:17] [#]} 8. Ng1 $146 {[%emt 0:00:52][%cal Bf3g1,Bg1e2,Be2c3][%mdl 32] The position is equal.} ({Predecessor:} 8. Nd2 O-O 9. Be2 c5 10. d5 Bf5 11. g4 Bg6 12. h4 h6 13. b3 Nbd7 14. Bb2 {1-0 (45) Aleksandrov,A (2582)-Ameir,M (2309) Chennai 2019}) 8... c5 {[%emt 0:00:34]} 9. Ne2 {[%emt 0:00:12][%cal Ob2b4]} Nc6 {[%emt 0:00:01]} 10. h3 {[%emt 0:00:56]} O-O {[%emt 0:00:58]} 11. Nc3 {[%emt 0:02:08] Inhibits d5.} Nb4 {[%emt 0:02:44]} 12. d5 {[%emt 0:00:06]} Bf5 {[%emt 0:00:31]} 13. a3 {[%emt 0:00:02]} Nd3+ {[%emt 0:01:01]} 14. Bxd3 {[%emt 0:00:02]} exd3 {[%emt 0:00:00]} 15. f3 {[%emt 0:01:17] Prevents Ne4.} (15. O-O $1 $14 {might be stronger.}) 15... Nd7 {[%emt 0:01:18] [#]} (15... Nh5 $1 $11 16. O-O Bxh3 $1) 16. O-O $1 $16 {[%emt 0:00:03]} Bg6 {[%emt 0:00:16]} 17. b3 {[%emt 0:01:25]} Rae8 {[%emt 0:00:46]} 18. Bd2 {[%emt 0:00:38]} a6 {[%emt 0:00:19]} 19. a4 {[%emt 0:00:04]} a5 {[%emt 0:00:55]} ({Black should play} 19... h6 $14) 20. Qe1 {[%emt 0:00:04]} f5 {[%emt 0:02:04]} 21. Nb5 {[%emt 0:01:10]} f4 {[%emt 0:00:45]} (21... b6 $16 22. Qd1 Ne5) 22. e4 $18 {[%emt 0:01:01]} ({But not} 22. exf4 Qf6 23. Qc1 Re2) 22... b6 {[%emt 0:01:48]} (22... Ne5 $142 23. Bxa5 Bh5) 23. Nc7 {[%emt 0:00:13]} Rf6 {[%emt 0:00:11]} 24. Nxe8 {[%emt 0:00:03]} Bxe8 {[%emt 0:00:00]} 25. Bc3 {[%emt 0:00:11]} Ne5 {[%emt 0:00:04]} 26. Rd1 {[%emt 0:00:48]} Rg6 {[%emt 0:00:11]} 27. Bxe5 {[%emt 0:00:43]} Qxe5 {[%emt 0:00:02]} 28. Rxd3 {[%emt 0:00:01]} Bd7 {[%emt 0:00:00]} 29. Kh2 {[%emt 0:00:34]} Rg3 {[%emt 0:00:13][%cal Od7h3]} 30. Rf2 {[%emt 0:01:34]} Kf7 {[%emt 0:00:20]} 31. Rd1 {[%emt 0:00:38]} h5 {[%emt 0:00:19]} 32. Qd2 {[%emt 0:00:57]} h4 {[%emt 0:00:47]} 33. Rh1 {[%emt 0:00:10]} Ke7 {[%emt 0:00:18]} 34. Qb2 {[%emt 0:00:17]} Kf6 {[%emt 0:00:13]} 35. Qc1 {[%emt 0:00:15]} Ke7 {[%emt 0:00:02]} 36. Kg1 {[%emt 0:00:12][%cal Bh2g1,Bg1f1,Bf1e2,Be2d3][%mdl 32]} Kd8 {[%emt 0:00:17]} 37. Qb2 {[%emt 0:00:09]} Rg5 {[%emt 0:00:02]} 38. Kf1 {[%emt 0:00:40]} Qxb2 {[%emt 0:00:29]} 39. Rxb2 {[%emt 0:00:02][%mdl 4096] Endgame KRR-KRB} Re5 {[%emt 0:00:01]} 40. Ke2 {[%emt 0:00:52]} Ke7 {[%emt 0:00:02]} 41. Kd3 {[%emt 0:00:02]} Kf6 {[%emt 0:00:08]} 42. Re2 {[%emt 0:00:05]} Kf7 {[%emt 0:00:08]} 43. Ree1 {[%emt 0:00:23]} Kf6 {[%emt 0:00:01]} 44. Re2 {[%emt 0:00:01]} Kf7 $1 {[%emt 0:00:01]} 45. Ree1 {[%emt 0:00:00]} Kf6 $1 {[%emt 0:00:01]} 46. Re2 $2 {[%emt 0:00:00] Weighted Error Value: White=0.19 (very precise) /Black=0.15 (very precise)} ({Better is} 46. Kc3 $18) 1/2-1/2

[Event "MCCT Oslo Esports Cup 2022"]
[Site "Oslo"]
[Date "2022.04.20"]
[Round "6.2"]
[White "Mamedyarov, Shakhriyar"]
[Black "Van Foreest, Jorden"]
[Result "0-1"]
[ECO "D74"]
[WhiteElo "2771"]
[BlackElo "2714"]
[Annotator "TA"]
[PlyCount "66"]
[EventDate "2022.04.14"]
[EventType "tourn"]
[EventCountry "NOR"]
[SourceTitle "playchess.com"]
[Source "ChessBase"]
[SourceQuality "1"]
[TimeControl "900+10"]

{[%evp 14,66,9,10,18,17,3,16,22,8,14,15,10,-2,14,-8,-6,0,0,0,0,0,20,23,77,76,76,76,76,76,76,75,75,75,75,75,74,72,68,66,78,0,0,0,0,0,0,0,0,0,0,0,8,-1123,-981]} 1. d4 {[%emt 0:00:00]} Nf6 {[%emt 0:00:00]} 2. c4 {[%emt 0:00:03]} g6 {[%emt 0:00:03]} 3. Nc3 {[%emt 0:00:05]} Bg7 {[%emt 0:00:03]} 4. g3 {[%emt 0:00:07]} O-O {[%emt 0:00:09]} 5. Bg2 {[%emt 0:00:04]} Nc6 {[%emt 0:00:58]} 6. Nf3 {[%emt 0:00:13]} d5 $1 {[%emt 0:00:31] 6...d5 scores better than 6...d6.} 7. cxd5 {[%emt 0:00:02]} Nxd5 {[%emt 0:00:00]} 8. O-O {[%emt 0:00:01]} e5 {[%emt 0:00:02][%cal Re5d4] D74: Fianchetto Grünfeld: Main Line (5 Nf3 0-0 6 cxd5 Nxd5 7 0-0).} 9. Bg5 {[%emt 0:00:05]} Nxc3 {[%emt 0:01:02]} 10. bxc3 {[%emt 0:00:04]} Qd6 {[%emt 0:00:12][%cal Re5d4] The position is equal.} 11. dxe5 {[%emt 0:03:54]} Qxd1 {[%emt 0:00:37]} 12. Rfxd1 {[%emt 0:00:14]} Nxe5 {[%emt 0:00:01] [#]} 13. Nd4 $146 {[%emt 0:00:11]} ({Predecessor:} 13. Nxe5 Bxe5 14. Rab1 Rb8 15. Bh6 Re8 16. Bc6 Bf5 17. Bxe8 Bxb1 18. Rxb1 Rxe8 19. Rxb7 {1-0 (40) Torres,J (2287)-Mendoza,R (2303) El Bagre 2019}) 13... c6 {[%emt 0:00:29]} 14. Rab1 {[%emt 0:00:08]} Re8 {[%emt 0:00:51]} 15. a4 {[%emt 0:00:31][%cal Ba2a4,Ba4a5][%mdl 32]} Nc4 {[%emt 0:01:44]} 16. h4 {[%emt 0:00:43]} h6 {[%emt 0:00:34]} 17. Bf4 {[%emt 0:00:01]} Nb6 {[%emt 0:00:25]} 18. a5 {[%emt 0:01:05]} Nd5 {[%emt 0:00:01]} (18... Na4 $1 $11) 19. Bxd5 $16 {[%emt 0:02:10]} cxd5 {[%emt 0:00:00]} 20. Nb5 {[%emt 0:00:05] aiming for Nc7.} Bf5 {[%emt 0:00:42] [#]} (20... Rxe2 $2 21. Nc7 Rb8 22. Na6 $18) 21. Rb2 {[%emt 0:00:02] Strongly threatening Nc7.} Rad8 {[%emt 0:00:43]} 22. Nd6 {[%emt 0:01:22]} Bxc3 {[%emt 0:01:44]} 23. Rxb7 {[%emt 0:00:18]} Rxe2 {[%emt 0:00:39]} (23... Bc2 $2 24. Rc1 Rxe2 25. Nxf7 $18 (25. Kf1 Bd2 $16)) 24. Nxf7 {[%emt 0:01:56]} Rd7 {[%emt 0:00:14]} 25. Nxh6+ {[%emt 0:00:03]} Kh7 {[%emt 0:00:03]} 26. a6 {[%emt 0:00:01]} Be6 {[%emt 0:00:27]} 27. Rxd7+ {[%emt 0:03:31]} ({White should try} 27. Rdb1 $16 Rg7 28. Rxg7+ Bxg7 29. Rb7) 27... Bxd7 $11 {[%emt 0:00:00] This bishop pair is nice.} 28. Nf7 {[%emt 0:00:01]} ({Don't blunder} 28. Rxd5 $2 Re1+ 29. Kh2 Bc6 30. Rd7+ Bxd7 $19) 28... d4 {[%emt 0:00:45]} 29. Ng5+ {[%emt 0:00:05]} Kg8 $1 {[%emt 0:00:04]} 30. Rb1 {[%emt 0:00:33]} Bb2 {[%emt 0:00:36]} 31. Nf3 {[%emt 0:00:17]} Bf5 {[%emt 0:00:00]} 32. Re1 {[%emt 0:00:24]} d3 {[%emt 0:00:09]} 33. Be3 $2 {[%emt 0:00:47][%mdl 8192] [#]} (33. Rd1 $11) 33... Be4 {[%emt 0:00:40] Weighted Error Value: White=0.34/Black=0.06 (flawless)} 0-1